bitfinex/quotes_ETHUSD_20241108
["timestamp","ask_amount","ask_price","bid_price","bid_amount"]
[1731079169321,0.38584772,2921.7,2920.5,4.05847948]
[1731079169509,4.06847948,2922.8,2920.6,3.55]
[1731079169710,4.05847948,2922.4,2920.6,3.55]
[1731079169950,4.05847948,2922.4,2920.4,0.55]
[1731079170517,3.0,2922.3,2920.4,0.55]
[1731079170837,3.0,2922.3,2920.6,0.55]
[1731079171086,0.70584795,2922.2,2920.7,0.06846175]
[1731079171390,0.70584795,2922.2,2920.6,0.55]
[1731079171593,0.70584795,2922.2,2920.3,0.55]
[1731079172479,3.0,2921.9,2920.4,0.06846488]
[1731079172666,0.70584795,2921.8,2919.8,3.91010211]
[1731079172999,0.70584795,2921.8,2920.2,0.7925]
[1731079173158,3.0,2922.3,2920.5,4.05847948]
[1731079173476,3.1385877,2922.7,2920.6,0.06845242]
[1731079173676,3.1385877,2922.7,2920.7,0.55]
[1731079174004,0.71970672,2922.6,2920.9,0.55]
[1731079174492,0.71970672,2922.6,2920.7,0.55]
[1731079175395,0.71970672,2922.6,2920.8,0.06845549]
[1731079175703,0.71970672,2922.6,2920.7,0.55]
[1731079175857,3.0,2922.3,2920.7,0.55]
[1731079176057,0.70584795,2922.2,2920.7,0.55]
[1731079178602,0.70584795,2922.2,2920.9,0.55]
[1731079178899,0.70584795,2922.2,2921.0,0.06844994]
[1731079179064,0.71970672,2922.6,2921.1,0.55]
[1731079179380,0.71970672,2922.6,2920.9,0.55]
[1731079180309,3.0,2922.3,2920.7,0.55]
[1731079180596,3.0,2922.3,2920.6,0.55]
[1731079180807,3.0,2922.3,2920.5,0.7972]
[1731079180962,0.70584795,2922.2,2920.6,3.06846009]
[1731079181304,0.70584795,2922.2,2920.6,3.0]
[1731079182100,0.70584795,2922.2,2920.7,0.55]
[1731079182272,0.70584795,2922.2,2920.6,0.55]
[1731079182468,0.37058479,2922.1,2920.6,0.55]
[1731079183668,0.37058479,2922.1,2920.8,0.55]
[1731079183873,0.37058479,2922.1,2920.5,0.7972]
[1731079183874,0.37058479,2922.1,2920.6,0.55]
[1731079185404,0.37058479,2922.1,2920.8,0.55]
[1731079185604,0.82821218,2922.7,2921.0,0.55]
[1731079185759,0.82821218,2922.7,2921.2,0.55]
[1731079186831,3.82821218,2922.7,2921.3,0.06844739]
[1731079186960,3.82821218,2922.7,2921.2,0.55]
[1731079187607,3.82821218,2922.7,2921.4,0.55]
[1731079187768,0.78866917,2922.6,2921.4,0.55]
[1731079187968,0.78866917,2922.6,2921.2,0.55]
[1731079190143,0.78866917,2922.6,2921.3,0.06844464]
[1731079190284,0.1385877,2922.7,2922.2,4.3121]
[1731079190782,0.1385877,2922.7,2922.2,5.61338148]
[1731079190977,0.1385877,2922.7,2922.2,4.3121]
[1731079191209,0.1385877,2922.7,2922.2,1.3121]
[1731079191413,0.1385877,2922.7,2922.4,0.55]
[1731079191578,0.1385877,2922.7,2922.2,1.3121]
[1731079191776,0.1385877,2922.7,2922.2,4.3121]
[1731079191982,0.1385877,2922.7,2922.6,0.55]
[1731079192279,3.28821613,2924.4,2922.8,0.55]
[1731079192517,3.28821613,2924.1,2922.8,0.55]
[1731079192827,3.28821613,2924.1,2922.7,0.54]
[1731079193326,4.04216836,2924.6,2922.8,0.06841239]
[1731079193476,0.40421684,2924.5,2922.9,0.36084124]
[1731079193680,3.40421684,2924.5,2922.7,0.54]
[1731079193939,0.40421684,2924.5,2922.8,0.7713]
[1731079194576,0.40421684,2924.5,2922.9,3.0]
[1731079194781,0.70006328,2924.9,2922.9,0.55]
[1731079195283,3.70006328,2924.9,2922.9,0.55]
[1731079196215,3.70006328,2924.9,2923.0,0.8109]
[1731079196424,3.70006328,2924.9,2923.1,0.55]
[1731079197782,3.0,2924.9,2923.1,4.59216836]
[1731079197986,4.06216836,2925.4,2923.3,0.55]
[1731079197987,0.3,2924.8,2923.3,0.55]
[1731079198236,0.68057207,2925.1,2923.9,4.04216836]
[1731079198385,0.68057207,2925.1,2924.0,0.55]
[1731079199081,0.1385877,2925.7,2924.0,0.55]
[1731079199482,0.1385877,2925.7,2924.2,0.55]
[1731079200432,0.66908677,2925.2,2924.1,0.7559]
[1731079200582,0.66908677,2925.2,2924.2,0.55]
[1731079200783,0.66908677,2925.2,2924.3,4.04216836]
[1731079201007,0.66908677,2925.2,2924.4,0.61837224]
[1731079201401,0.66908677,2925.2,2924.5,0.8139]
[1731079202337,0.66908677,2925.2,2924.6,0.06837226]
[1731079202551,0.1385877,2925.7,2924.8,4.04216836]
[1731079202684,1.40275053,2927.5,2925.6,0.8139]
[1731079202882,4.04216836,2928.3,2926.3,0.8139]
[1731079203082,4.04216836,2927.9,2926.4,0.06832976]
[1731079203327,0.67438307,2927.4,2925.8,3.8139]
[1731079204235,0.67438307,2927.4,2925.9,0.55]
[1731079204440,4.04216836,2927.9,2925.9,0.55]
[1731079204647,0.01,2927.8,2925.9,0.55]
[1731079204945,3.0,2927.4,2925.8,0.8139]
[1731079205095,3.0,2927.4,2925.4,3.0]
[1731079205447,0.70521684,2927.3,2925.6,0.55]
[1731079205737,0.67178587,2927.2,2925.5,0.8139]
[1731079206044,0.01,2926.8,2925.1,0.804]
[1731079206197,3.55,2926.6,2925.1,0.804]
[1731079206398,0.68996626,2926.5,2925.1,0.804]
[1731079206632,0.42399663,2926.4,2925.1,0.804]
[1731079207228,4.04216836,2926.3,2924.7,0.7845]
[1731079207543,3.0,2926.2,2924.8,0.06837112]
[1731079207697,0.43399663,2926.4,2924.7,0.7845]
[1731079207898,0.42399663,2926.4,2924.7,0.7845]
[1731079208344,0.43399663,2926.4,2924.7,0.7845]
[1731079208523,0.42399663,2926.4,2924.7,0.7845]
[1731079208760,0.43399663,2926.4,2924.7,0.7845]
[1731079209138,3.0,2926.2,2924.7,0.7845]
[1731079209340,0.75921684,2926.1,2924.7,0.7845]
[1731079209594,0.55,2926.0,2924.7,0.7845]
[1731079209891,3.0,2925.4,2924.3,0.7654]
[1731079210243,3.0,2925.8,2924.3,0.7654]
[1731079210582,0.55,2925.7,2924.3,0.7654]
[1731079210793,0.70521684,2927.3,2925.4,4.04216836]
[1731079210994,4.05216836,2927.8,2925.6,0.7563]
[1731079211140,4.74341825,2927.8,2925.6,0.7563]
[1731079211343,4.04216836,2927.4,2925.6,0.7563]
[1731079211577,7.45817836,2927.4,2925.6,0.7563]
[1731079211792,4.04216836,2927.0,2925.6,0.7563]
[1731079211943,0.40421684,2926.9,2925.6,0.7563]
[1731079212559,4.04216836,2926.6,2925.6,0.7563]
[1731079212869,3.55,2926.5,2924.4,0.7851]
[1731079213179,3.55,2926.1,2924.4,0.7851]
[1731079213508,6.42786,2925.8,2924.4,0.7851]
[1731079213801,0.985569,2925.8,2924.8,0.7851]
[1731079214094,0.55,2926.4,2924.8,0.7851]
[1731079214867,3.55,2926.4,2924.8,0.7851]
[1731079215202,0.68503349,2926.7,2925.4,4.04216836]
[1731079215406,0.01,2927.6,2925.9,0.8301]
[1731079215706,0.01,2927.8,2926.0,0.06834867]
[1731079215707,0.01,2927.5,2926.0,0.06834867]
[1731079215858,0.01,2927.2,2925.9,0.8301]
[1731079216059,0.40521684,2927.1,2925.9,0.8301]
[1731079217179,4.04216836,2927.7,2925.9,0.8301]
[1731079217705,4.04216836,2927.7,2926.0,0.06834547]
[1731079217996,0.01,2928.1,2926.0,0.06834547]
[1731079217997,0.67792203,2927.9,2926.1,0.7982]
[1731079218409,0.66792203,2927.9,2926.1,0.7982]
[1731079219904,0.66792203,2927.9,2926.2,0.87553914]
[1731079222699,4.04216836,2927.3,2926.2,0.8072]
[1731079222866,3.0,2927.2,2926.2,0.8072]
[1731079223207,0.67030556,2927.9,2926.2,0.8072]
[1731079223358,4.71247392,2927.9,2926.2,0.8072]
[1731079223563,0.01,2927.7,2926.2,0.8072]
[1731079223910,4.05216836,2927.5,2926.2,0.8072]
[1731079224257,3.0,2927.4,2926.2,0.8072]
[1731079224512,0.70521684,2927.3,2926.2,0.8072]
[1731079224803,4.04216836,2926.5,2925.1,0.7753]
[1731079225010,3.0,2926.4,2925.1,0.7753]
[1731079225195,1.44511967,2927.2,2925.1,0.7753]
[1731079225196,4.05216836,2926.9,2925.1,0.7753]
[1731079225366,3.40521684,2926.8,2925.1,0.7753]
[1731079225564,4.07429273,2926.8,2925.1,0.7753]
[1731079225872,1.07429273,2926.8,2925.2,0.7753]
[1731079226073,3.0,2927.2,2925.2,0.7753]
[1731079226074,4.04216836,2926.9,2925.2,0.7753]
[1731079226305,3.55,2926.8,2925.2,0.7753]
[1731079226506,3.0,2926.4,2925.2,0.7753]
[1731079228040,0.55,2926.3,2925.2,0.7753]
[1731079228242,0.55,2926.3,2923.8,0.7671]
[1731079228243,6.41765,2926.0,2923.8,0.7671]
[1731079228538,3.0,2925.6,2923.8,0.7671]
[1731079228841,0.01,2927.0,2924.6,0.7671]
[1731079229134,1.11355538,2927.3,2924.6,0.7671]
[1731079229135,4.04216836,2926.9,2924.6,0.7671]
[1731079229288,0.68794926,2926.7,2924.6,0.7671]
[1731079229484,4.04216836,2926.9,2924.6,0.7671]
[1731079229699,0.40421684,2926.8,2924.8,0.8272]
[1731079231188,3.40421684,2926.8,2925.0,0.8272]
[1731079231536,3.40421684,2926.8,2925.2,0.8272]
[1731079232402,0.55,2926.7,2925.2,0.8272]
[1731079232600,0.39542168,2926.6,2925.2,0.8272]
[1731079232831,0.55,2926.5,2925.2,0.8272]
[1731079233040,3.0,2926.0,2925.2,0.8272]
[1731079233343,0.55,2925.9,2924.2,0.7631]
[1731079233679,3.41723,2926.4,2924.0,1.034189]
[1731079233680,4.04216836,2926.5,2924.4,0.7631]
[1731079233848,3.444759,2926.4,2924.5,0.83147323]
[1731079234147,0.444759,2926.4,2924.5,0.83147323]
[1731079234286,0.56,2926.7,2924.5,0.83147323]
[1731079234691,0.56,2926.7,2924.5,0.7631]
[1731079234946,3.0,2926.4,2924.5,0.7631]
[1731079235291,0.6684934,2926.6,2924.5,0.7631]
[1731079235292,3.0,2926.0,2924.5,0.7631]
[1731079236445,0.55,2925.9,2924.5,0.7631]
[1731079236737,0.355,2925.8,2924.5,0.7631]
[1731079238428,0.55,2925.7,2924.5,0.7631]
[1731079240147,4.04216836,2925.3,2924.5,0.7631]
[1731079240479,7.04216836,2925.6,2924.5,0.7631]
[1731079240630,0.70421684,2925.5,2924.5,0.7631]
[1731079241272,0.55,2925.7,2924.5,0.7631]
[1731079241475,3.0,2925.5,2924.5,0.7631]
[1731079241829,4.04216836,2925.6,2924.5,0.7631]
[1731079242031,4.04216836,2925.2,2924.5,0.7631]
[1731079242435,3.0,2925.5,2924.5,0.7631]
[1731079242630,0.70421684,2925.4,2924.5,0.7631]
[1731079244272,3.0,2925.5,2924.5,0.7631]
[1731079244876,0.68377937,2925.7,2924.5,0.7631]
[1731079245231,0.355,2925.8,2924.5,0.7631]
[1731079245859,5.40992736,2926.4,2924.7,0.7679]
[1731079246064,4.04216836,2926.4,2924.9,0.7679]
[1731079246686,4.04216836,2926.4,2925.1,0.7777]
[1731079247785,0.67664418,2926.5,2925.1,0.7777]
[1731079248145,3.0,2926.7,2925.1,0.7777]
[1731079248456,0.70421684,2926.6,2925.1,0.7777]
[1731079248786,1.37416225,2926.6,2925.1,0.7777]
[1731079250403,1.37416225,2926.6,2925.3,0.7553]
[1731079250683,0.70421684,2926.6,2925.3,0.7553]
[1731079250893,0.69831265,2926.7,2925.4,0.0683614]
[1731079251051,0.69831265,2926.7,2925.5,0.82165476]
[1731079251687,0.59831265,2926.7,2925.5,0.7533]
[1731079251873,3.64048101,2927.2,2925.5,0.7533]
[1731079252072,0.67643411,2926.8,2925.5,0.7533]
[1731079254197,0.55,2926.7,2925.5,0.7533]
[1731079254397,3.55,2926.7,2925.5,0.7533]
[1731079254597,3.55,2926.3,2925.2,0.7924]
[1731079254914,3.55,2925.9,2925.2,0.7924]
[1731079255203,0.75921684,2925.8,2925.2,0.7924]
[1731079256161,0.69765147,2926.1,2925.2,0.7924]
[1731079256400,4.92545197,2926.1,2925.2,0.7924]
[1731079256562,0.55,2925.9,2925.2,0.7924]
[1731079257822,1.24765147,2925.9,2925.2,0.7924]
[1731079258275,0.55,2925.9,2925.2,0.7924]
[1731079258481,0.42476515,2925.8,2925.2,0.7924]
[1731079258806,0.55,2925.7,2925.2,0.7924]
[1731079260188,0.55,2925.7,2924.3,0.7997]
[1731079260395,3.55,2925.5,2924.3,0.7997]
[1731079260700,4.24765147,2925.5,2924.3,0.7997]
[1731079260898,0.55,2925.3,2924.3,0.7997]
[1731079261110,0.55,2925.1,2924.3,0.7997]
[1731079261618,0.69765147,2925.3,2924.3,0.7997]
[1731079261823,0.69765147,2925.8,2924.3,0.7997]
[1731079261977,1.74412867,2926.1,2924.5,4.86986836]
[1731079262179,0.69765147,2926.2,2924.7,0.8277]
[1731079262401,0.69765147,2926.6,2925.0,0.8277]
[1731079262605,0.69765147,2926.6,2924.9,4.04216836]
[1731079262606,0.69765147,2926.6,2925.2,0.8024]
[1731079262838,0.68474563,2926.5,2925.2,0.8024]
[1731079263332,0.69765147,2927.2,2926.2,0.7556]
[1731079263488,0.69765147,2927.6,2926.4,0.7556]
[1731079263792,0.69765147,2927.8,2926.4,0.7556]
[1731079263993,0.69765147,2927.9,2926.4,0.7556]
[1731079264223,1.0464772,2928.0,2926.4,0.7556]
[1731079264224,0.17441287,2927.8,2926.4,0.7556]
[1731079264398,0.69765147,2927.9,2926.4,0.7556]
[1731079264601,0.66702634,2927.7,2926.4,0.7556]
[1731079265033,0.69765147,2928.1,2927.3,4.04216836]
[1731079265205,0.69765147,2928.1,2926.3,0.47977684]
[1731079265206,0.3305877,2928.7,2928.2,0.7883]
[1731079265405,0.1385877,2928.7,2928.6,0.7712]
[1731079268723,0.1385877,2928.7,2927.2,0.7907]
[1731079268938,0.1385877,2928.7,2927.4,0.7907]
[1731079269142,0.1385877,2928.7,2927.5,0.06829594]
[1731079269345,0.1385877,2928.7,2927.8,0.7924]
[1731079270045,0.1385877,2928.7,2928.0,0.7924]
[1731079270403,0.1385877,2928.7,2928.2,0.8291]
[1731079272032,0.1385877,2928.7,2927.2,0.7708]
[1731079272361,0.45244647,2928.7,2927.2,0.7708]
[1731079273211,0.1385877,2928.7,2927.4,0.823]
[1731079273416,0.1385877,2928.7,2927.5,0.823]
[1731079275048,0.1385877,2928.7,2927.0,0.01]
[1731079275049,0.1385877,2928.7,2927.7,0.823]
[1731079276138,0.0885877,2928.7,2927.7,0.823]
[1731079276349,1.3089,2928.6,2927.7,0.823]
[1731079276554,0.7589,2928.6,2927.7,0.823]
[1731079276974,0.0885877,2928.7,2927.7,0.823]
[1731079277173,0.55038509,2928.7,2927.7,0.823]
[1731079279288,0.0885877,2928.7,2927.7,0.823]
[1731079283978,0.0885877,2928.7,2928.2,0.55]
[1731079284177,0.766,2930.4,2928.8,0.7649]
[1731079284915,0.766,2930.4,2928.9,0.06827665]
[1731079285220,0.625,2930.8,2929.0,0.7649]
[1731079285514,0.625,2930.8,2929.2,0.7649]
[1731079285891,0.766,2930.7,2929.2,1.14139]
[1731079286096,0.766,2930.7,2929.2,0.7649]
[1731079287726,0.766,2930.7,2929.3,0.06827003]
[1731079288033,0.766,2930.7,2929.2,0.7649]
[1731079288433,0.766,2930.7,2929.3,0.06826466]
[1731079288744,0.625,2930.8,2929.2,0.7649]
[1731079288896,0.625,2930.8,2930.2,3.0]
[1731079289092,0.625,2930.8,2930.4,0.771]
[1731079289323,0.625,2930.8,2930.7,8.36038621]
[1731079289627,0.01666253,2930.8,2930.7,8.91038621]
[1731079290337,0.1385877,2931.6,2930.9,0.831]
[1731079291615,0.1385877,2931.6,2931.0,0.06822182]
[1731079292526,0.1385877,2931.6,2930.9,0.831]
[1731079293128,0.1385877,2931.6,2931.0,0.06821736]
[1731079293928,0.1385877,2931.6,2930.9,0.831]
[1731079294235,0.1385877,2931.6,2931.2,0.7613]
[1731079294592,0.1385877,2931.6,2931.3,0.07821429]
[1731079294787,0.1385877,2931.6,2931.2,0.7613]
[1731079296503,0.1385877,2931.6,2930.7,0.8099]
[1731079299998,0.1385877,2931.6,2930.8,0.06822841]
[1731079300200,0.1385877,2931.6,2930.7,0.8099]
[1731079300745,0.1385877,2931.6,2930.8,0.06822841]
[1731079301036,0.1385877,2931.6,2930.7,0.8099]
[1731079302151,0.1385877,2931.6,2930.9,0.8199]
[1731079302300,0.1385877,2931.6,2931.0,0.38881233]
[1731079302613,0.1385877,2931.6,2931.1,0.06821393]
[1731079302800,0.1385877,2931.6,2931.1,0.06821724]
[1731079303229,0.1385877,2931.6,2931.0,0.38881233]
[1731079303557,0.1385877,2931.6,2931.1,0.0682174]
[1731079303721,0.1385877,2931.6,2930.9,1.24666225]
[1731079303922,0.1385877,2931.6,2930.9,0.8099]
[1731079304258,0.7762,2931.5,2930.5,0.7837]
[1731079304913,0.7762,2931.5,2930.0,0.8299]
[1731079305421,0.7762,2931.5,2930.0,1.52215339]
[1731079306010,0.7762,2931.5,2930.1,0.06824328]
[1731079306210,0.7762,2931.5,2930.0,1.52215339]
[1731079306458,0.7762,2931.5,2930.0,4.97817551]
[1731079306656,0.7762,2931.5,2930.0,4.28592212]
[1731079307063,0.7762,2931.5,2929.8,35.0]
[1731079307438,0.7513,2931.1,2929.2,0.7567]
[1731079308033,0.7513,2931.1,2929.3,35.0]
[1731079308231,0.55,2930.8,2929.2,0.7567]
[1731079308538,0.7698,2930.7,2929.3,0.06826349]
[1731079308726,0.7698,2930.7,2929.3,35.06826349]
[1731079308940,0.7698,2930.7,2929.3,35.0]
[1731079309636,0.7698,2930.7,2929.4,3.0]
[1731079309828,0.7698,2930.7,2929.2,0.7567]
[1731079310034,0.7555,2931.0,2929.2,0.7567]
[1731079310241,0.7555,2931.0,2929.2,1.22299084]
[1731079310447,0.7555,2931.0,2929.3,0.42429908]
[1731079311233,0.7555,2931.0,2929.6,0.7714]
[1731079311540,0.7555,2931.0,2929.7,0.53453407]
[1731079311727,0.7555,2931.0,2929.7,0.46629084]
[1731079312063,0.7555,2931.0,2929.6,0.7714]
[1731079312368,0.7555,2931.0,2929.6,1.23769084]
[1731079312871,0.7555,2931.0,2929.7,3.06824323]
[1731079313160,0.7555,2931.0,2929.8,0.43059341]
[1731079313367,0.7555,2931.0,2929.9,0.06825207]
[1731079313574,0.7555,2931.0,2929.7,0.06825207]
[1731079314902,0.1385877,2931.6,2929.7,0.06825207]
[1731079315229,0.1385877,2931.6,2930.6,0.01]
[1731079315400,0.1385877,2931.6,2931.0,0.01]
[1731079315554,0.1385877,2931.6,2931.1,4.2529575]
[1731079315749,0.1385877,2931.6,2931.2,0.8860556]
[1731079316198,0.1385877,2931.6,2931.2,1.57627526]
[1731079316399,0.8284,2933.9,2932.0,0.8053]
[1731079316706,0.8284,2933.9,2932.0,3.8053]
[1731079316859,0.8234,2933.8,2932.0,3.0]
[1731079317060,4.52938621,2932.8,2931.2,0.69021966]
[1731079317297,0.7847,2932.6,2931.0,0.8053]
[1731079317465,0.7847,2932.6,2930.5,0.8244]
[1731079317882,0.7847,2932.5,2930.5,0.8244]
[1731079318296,0.7847,2932.5,2930.6,0.06822918]
[1731079319207,0.7847,2932.5,2930.6,0.07822146]
[1731079319415,0.7847,2932.5,2930.7,0.58877121]
[1731079319907,0.7847,2932.5,2930.6,0.55]
[1731079320422,0.7847,2932.5,2930.5,0.8244]
[1731079320423,0.8118,2932.3,2930.5,0.8244]
[1731079320566,0.55,2932.2,2930.1,0.8246]
[1731079320767,0.8118,2931.8,2930.0,0.01]
[1731079321067,0.8118,2931.8,2930.3,0.8246]
[1731079321564,0.8118,2931.8,2930.4,0.07822589]
[1731079321708,0.8118,2931.8,2930.5,0.55422121]
[1731079322040,0.8118,2931.8,2930.8,0.01]
[1731079322445,0.8118,2931.8,2930.8,0.02]
[1731079323001,0.8326,2932.9,2931.1,4.53938621]
[1731079323244,0.8326,2932.9,2931.2,3.0]
[1731079323421,0.8326,2932.9,2931.3,0.75293862]
[1731079323752,0.8326,2932.9,2930.9,0.7563]
[1731079323908,0.8306,2932.7,2930.5,1.36472121]
[1731079324112,0.8306,2932.7,2930.2,4.52938621]
[1731079324113,0.8206,2932.3,2930.2,0.66584151]
[1731079324471,0.8206,2931.9,2930.1,0.8205]
[1731079324904,0.8206,2931.9,2929.7,1.26809726]
[1731079325104,0.7741,2931.7,2929.8,0.06823736]
[1731079325324,0.7741,2931.7,2930.0,0.8173]
[1731079325520,0.7741,2931.7,2930.2,0.01]
[1731079325733,0.7741,2931.7,2930.0,0.8073]
[1731079325734,0.7741,2931.7,2930.6,0.8073]
[1731079326434,0.7741,2931.7,2930.4,0.01]
[1731079326637,0.7741,2931.7,2930.3,0.55]
[1731079326946,0.7741,2931.7,2929.9,1.5231917]
[1731079327446,0.7741,2931.7,2930.3,0.01]
[1731079328853,0.7741,2931.7,2930.1,0.55]
[1731079329182,0.7741,2931.7,2930.0,3.01]
[1731079329335,0.7741,2931.7,2930.2,0.06822908]
[1731079329724,0.7741,2931.7,2930.0,3.0]
[1731079330062,0.7741,2931.7,2930.0,0.38298]
[1731079330267,0.7741,2931.7,2929.6,0.01]
[1731079330420,0.7741,2931.7,2929.7,0.35597321]
[1731079330767,0.7741,2931.7,2929.8,4.54938621]
[1731079331120,0.7741,2931.7,2929.9,0.06823414]
[1731079331354,0.7741,2931.7,2929.9,3.06823414]
[1731079331664,0.7741,2931.7,2930.0,0.80441581]
[1731079332326,0.7741,2931.7,2929.7,0.35597321]
[1731079333022,0.8042,2931.5,2929.7,0.35597321]
[1731079333224,0.8139,2931.3,2929.7,0.35597321]
[1731079333675,0.8139,2930.8,2929.7,0.35597321]
[1731079333986,0.8139,2930.3,2928.2,0.69703447]
[1731079334148,0.8139,2930.3,2928.5,0.35613029]
[1731079334366,0.8139,2930.3,2928.6,0.06827726]
[1731079334522,0.8139,2930.3,2928.6,0.8174]
[1731079334729,0.8139,2930.3,2929.0,4.52938621]
[1731079335073,0.8139,2930.3,2929.1,0.45293862]
[1731079335661,0.8139,2930.3,2928.8,0.01]
[1731079336028,0.8139,2930.3,2928.8,0.02]
[1731079336228,0.8139,2930.3,2928.8,0.01]
[1731079336650,0.8139,2930.3,2928.7,3.0]
[1731079336860,0.8139,2930.3,2928.6,6.02656701]
[1731079336861,0.8139,2930.3,2928.6,0.8174]
[1731079337023,0.8139,2930.3,2928.5,0.35613029]
[1731079337768,0.8139,2930.3,2928.6,0.06827709]
[1731079337921,0.8139,2930.3,2928.5,0.35613029]
[1731079338125,0.8139,2930.3,2928.6,4.59765975]
[1731079338373,0.8139,2930.3,2928.7,0.54803278]
[1731079338664,0.8139,2930.3,2928.8,0.7875]
[1731079338835,0.8139,2930.3,2928.7,3.53803278]
[1731079339248,0.8139,2930.3,2928.7,0.53803278]
[1731079339453,0.8139,2930.3,2928.5,0.35613029]
[1731079340076,0.8139,2930.3,2928.7,0.8194]
[1731079340250,0.8139,2930.3,2928.8,0.06825531]
[1731079340582,0.8139,2930.3,2928.7,1.2459378]
[1731079340889,0.8139,2930.3,2928.9,0.55]
[1731079341237,0.8139,2930.3,2929.1,0.55]
[1731079341438,0.8139,2930.3,2928.8,0.55]
[1731079341690,0.8139,2930.3,2928.9,0.50531333]
[1731079341975,0.8139,2930.3,2929.0,0.06825783]
[1731079342179,0.8139,2930.3,2928.9,0.50531333]
[1731079342478,0.8139,2930.3,2929.0,0.0682643]
[1731079342662,0.8139,2930.3,2928.9,0.50531333]
[1731079343747,0.8139,2930.3,2929.0,0.0682679]
[1731079343951,0.8139,2930.3,2928.5,0.35613029]
[1731079344401,0.8139,2930.3,2928.4,1.93411177]
[1731079344603,0.8139,2930.3,2928.5,0.35610231]
[1731079344888,0.8139,2930.3,2928.6,0.06827209]
[1731079345463,0.8139,2930.3,2928.5,0.35610231]
[1731079345663,3.0,2930.5,2928.5,0.35610231]
[1731079345664,0.8181,2930.1,2928.5,0.35610231]
[1731079346088,0.8181,2929.9,2928.5,0.35610231]
[1731079346305,0.8181,2929.9,2928.6,0.06828284]
[1731079347090,0.8181,2929.9,2928.5,0.35610231]
[1731079347967,0.8181,2929.9,2928.7,0.8291]
[1731079348173,0.8181,2929.9,2928.8,0.0682758]
[1731079348371,0.8181,2929.9,2928.9,0.38973758]
[1731079348596,0.8181,2929.9,2928.6,0.69812266]
[1731079348911,0.8181,2929.9,2928.7,3.06827211]
[1731079349506,0.8181,2929.9,2928.7,0.06827054]
[1731079349718,0.8181,2929.9,2928.7,3.0]
[1731079350016,0.8181,2929.9,2928.6,1.15195181]
[1731079351322,0.8181,2929.9,2928.6,0.69812266]
[1731079352388,0.8181,2929.9,2928.5,0.81122952]
[1731079353273,0.67537258,2931.2,2928.5,0.81122952]
[1731079353274,0.8065,2931.4,2928.9,3.55]
[1731079353473,0.8065,2931.4,2929.6,0.01]
[1731079353707,0.8065,2931.4,2929.7,0.55314459]
[1731079354078,0.8065,2931.4,2929.7,1.23226601]
[1731079354474,0.8065,2931.4,2929.8,4.3532]
[1731079354675,0.8065,2931.4,2929.9,0.55314459]
[1731079354872,0.8065,2931.4,2930.1,0.55]
[1731079355094,0.8065,2931.4,2930.3,0.56]
[1731079355329,0.8065,2931.4,2930.4,0.06822581]
[1731079355486,0.8065,2931.4,2930.4,0.55314459]
[1731079355684,0.8065,2931.4,2930.6,1.3432]
[1731079355886,0.01,2933.2,2930.6,1.3432]
[1731079355887,0.8022,2932.9,2931.2,3.0]
[1731079356080,0.8122,2932.9,2931.3,0.75293862]
[1731079356279,0.01,2932.5,2930.2,0.7572]
[1731079356504,0.8022,2932.4,2930.2,0.45696639]
[1731079356815,0.8022,2932.4,2930.1,0.67599869]
[1731079357014,0.7932,2932.2,2930.2,0.06823524]
[1731079357237,0.7932,2932.2,2930.2,0.54854649]
[1731079357535,0.7932,2932.2,2930.2,0.48031125]
[1731079357880,0.56,2932.1,2930.2,0.46469444]
[1731079358080,0.55,2931.9,2930.0,0.49063446]
[1731079358335,4.52938621,2932.5,2930.0,0.49063446]
[1731079358336,0.7972,2931.8,2930.3,4.52938621]
[1731079358507,0.7972,2931.8,2930.7,4.52938621]
[1731079358827,0.7972,2931.8,2930.8,0.06821792]
[1731079358979,0.7972,2931.8,2930.7,4.52938621]
[1731079359183,0.7972,2931.8,2930.8,3.45293862]
[1731079359442,0.7972,2931.8,2930.9,0.55]
[1731079359783,0.7972,2931.8,2931.0,0.6955039]
[1731079360479,0.7972,2931.8,2931.1,3.0]
[1731079360686,0.7972,2931.8,2930.6,3.0]
[1731079360912,0.7972,2931.8,2930.6,1.57069951]
[1731079361220,0.7972,2931.8,2930.6,0.68131829]
[1731079361631,0.7972,2931.8,2930.2,0.90355532]
[1731079361794,0.7972,2931.8,2930.3,0.0682311]
[1731079361987,0.7972,2931.8,2930.4,0.06823116]
[1731079362187,0.7972,2931.8,2930.3,1.1475325]
[1731079362387,0.7972,2931.8,2930.4,0.45930295]
[1731079362695,0.7972,2931.8,2930.4,0.91736131]
[1731079362915,0.7972,2931.8,2930.5,0.06823795]
[1731079363121,0.7972,2931.8,2930.4,0.91736131]
[1731079363496,0.7972,2931.8,2930.6,3.0]
[1731079363698,0.7972,2931.8,2930.7,0.82798774]
[1731079364103,0.7972,2931.8,2931.3,4.52938621]
[1731079364426,0.7972,2931.8,2931.4,3.0682101]
[1731079364720,0.8126,2933.3,2931.4,3.0682101]
[1731079364937,0.8126,2933.3,2931.4,4.8382101]
[1731079365226,0.8126,2933.3,2931.5,0.93675963]
[1731079365727,0.8126,2933.3,2931.8,3.0]
[1731079366331,0.005,2933.4,2933.1,4.52938621]
[1731079367404,0.005,2933.4,2932.7,3.0]
[1731079367726,0.005,2933.4,2932.6,0.66929374]
[1731079367727,0.8126,2933.3,2931.8,3.0]
[1731079367932,0.8126,2933.3,2932.1,0.66833926]
[1731079368130,0.005,2933.4,2932.8,3.0]
[1731079368436,0.005,2933.4,2933.3,7.52938621]
[1731079368640,0.005,2933.4,2932.9,3.52582393]
[1731079368994,0.005,2933.4,2932.9,3.0]
[1731079369228,0.005,2933.4,2932.9,3.75293862]
[1731079369399,0.005,2933.4,2932.9,3.0]